fUST/lending_fUST_20251013
["ID","MTS","AMOUNT","RATE_DAILY","PERIOD"]
[391088520,1760316643440,-511.44,0.00030136,21]
[391088521,1760316643449,-511.44,0.00030136,21]
[391088522,1760316643460,-511.44,0.00030136,21]
[391088523,1760316643469,-511.44,0.00030136,21]
[391088524,1760316643478,-511.44,0.00030136,21]
[391088525,1760316643488,-500.0,0.00030136,21]
[391088526,1760316643498,-375.78,0.00030136,21]
[391088527,1760316643507,-598.16,0.00030136,21]
[391088528,1760316643517,-500.0,0.00030136,21]
[391088529,1760316643526,-500.0,0.00030136,21]
[391088530,1760316643536,-500.0,0.00030136,21]
[391088531,1760316643545,-500.0,0.00030136,21]
[391088532,1760316643554,-545.33,0.00030136,21]
[391088533,1760316643563,-500.0,0.00030136,21]
[391088534,1760316643573,-500.0,0.00030136,21]
[391088535,1760316643583,-500.0,0.00030136,21]
[391088536,1760316643592,-500.0,0.00030136,21]
[391088537,1760316643602,-500.0,0.00030136,21]
[391088538,1760316643611,-500.0,0.00030136,21]
[391088539,1760316643621,-500.0,0.00030136,21]
[391088540,1760316643631,-500.0,0.00030136,21]
[391088541,1760316643641,-500.0,0.00030136,21]
[391088542,1760316643650,-500.0,0.00030136,21]
[391088543,1760316643660,-500.0,0.00030136,21]
[391088544,1760316643670,-500.0,0.00030136,21]
[391088545,1760316643681,-500.0,0.00030136,21]
[391088546,1760316643690,-500.0,0.00030136,21]
[391088547,1760316643699,-500.0,0.00030136,21]
[391088548,1760316643708,-500.0,0.00030136,21]
[391088549,1760316643718,-500.0,0.00030136,21]
[391088550,1760316643728,-500.0,0.00030136,21]
[391088551,1760316643738,-156.7,0.00030136,21]
[391088552,1760316643747,-500.0,0.00030136,21]
[391088553,1760316643757,-500.0,0.00030136,21]
[391088554,1760316643767,-500.0,0.00030136,21]
[391088555,1760316643776,-500.0,0.00030136,21]
[391088556,1760316643786,-254.67,0.00030136,21]
[391088557,1760316643796,-500.0,0.00030136,21]
[391088558,1760316643806,-378.37,0.00030136,21]
[391088559,1760316643815,-500.0,0.00030136,21]
[391088560,1760316643825,-500.0,0.00030136,21]
[391088561,1760316643836,-500.0,0.00030136,21]
[391088562,1760316643846,-500.0,0.00030136,21]
[391088564,1760316643856,-500.0,0.00030136,21]
[391088565,1760316643866,-500.0,0.00030136,21]
[391088567,1760316643876,-500.0,0.00030136,21]
[391088569,1760316643887,-500.0,0.00030136,21]
[391088571,1760316643897,-500.0,0.00030136,21]
[391088573,1760316643907,-500.0,0.00030136,21]
[391088575,1760316643917,-500.0,0.00030136,21]
[391088576,1760316643928,-536.62,0.00030136,21]
[391088577,1760316643938,-500.0,0.00030136,21]
[391088578,1760316643947,-500.0,0.00030136,21]
[391088579,1760316643957,-290.26,0.00030136,21]
[391088580,1760316643967,-500.0,0.00030136,21]
[391088581,1760316643977,-500.0,0.00030136,21]
[391088582,1760316643987,-500.0,0.00030136,21]
[391088583,1760316643996,-500.0,0.00030136,21]
[391088584,1760316644006,-581.7,0.00030136,21]
[391088585,1760316644016,-500.0,0.00030136,21]
[391088586,1760316644025,-500.0,0.00030136,21]
[391088587,1760316644035,-369.68,0.00030136,21]
[391088588,1760316644045,-500.0,0.00030136,21]
[391088589,1760316644056,-500.0,0.00030136,21]
[391088590,1760316644067,-500.0,0.00030136,21]
[391088591,1760316644078,-500.0,0.00030136,21]
[391088592,1760316644089,-177.58,0.00030136,21]
[391088593,1760316644100,-500.0,0.00030136,2]
[391088594,1760316644112,-500.0,0.00030136,21]
[391088595,1760316644122,-500.0,0.00030136,21]
[391088596,1760316644132,-500.0,0.00030136,21]
[391088597,1760316644142,-486.71,0.00030136,21]
[391088598,1760316644151,-480.0,0.00030136,21]
[391088599,1760316644161,-500.0,0.00030136,21]
[391088600,1760316644171,-229.57,0.00030136,21]
[391088602,1760316644180,-500.0,0.00030136,21]
[391088604,1760316644189,-500.0,0.00030136,21]
[391088606,1760316644199,-500.0,0.00030136,21]
[391088608,1760316644208,-500.0,0.00030136,21]
[391088610,1760316644217,-416.71,0.00030136,21]
[391088612,1760316644227,-1000.0,0.00030204,2]
[391088614,1760316644235,-1000.0,0.00030204,2]
[391088616,1760316644244,-1000.0,0.00030204,2]
[391088618,1760316644254,-1000.0,0.00030204,2]
[391088620,1760316644263,-1000.0,0.00030204,2]
[391088621,1760316644272,-1000.0,0.00030204,2]
[391088622,1760316644284,-1000.0,0.00030204,2]
[391088623,1760316644294,-250.8564,0.00030204,2]
[391088624,1760316644304,-150.0,0.00030273,120]
[391088625,1760316644314,-6000.0,0.000303,8]
[391088626,1760316644323,-168.0,0.00030325,2]
[391088627,1760316644332,-168.0,0.00030357,2]
[391088628,1760316644341,-168.0,0.0003036,2]
[391088629,1760316644350,-3306.33321156,0.00030363,2]
[391088630,1760316644359,-5032.86864925,0.00030363,2]
[391088631,1760316644368,-1081.16712206,0.00030363,2]
[391088632,1760316644378,-2088.78532203,0.000304,30]
[391088633,1760316644387,-150.0,0.0003041,120]
[391088634,1760316644396,-492155.43333101,0.00030463,20]
[391088635,1760316644439,-2853.65462787,0.00030463,20]
[391088641,1760316646702,-820.25,0.00028435,10]
[391088642,1760316646712,-11194.75,0.00030463,20]
[391088646,1760316714224,2381.07357163,0.00027,120]
[391088651,1760316975786,691.083902,0.00013699,2]
[391088652,1760316975964,691.083902,0.00020187,2]
[391088653,1760317001822,2436.0,0.00027397,120]
[391088659,1760317632188,3000.0,0.00027397,120]
[391088798,1760317839955,-300.0,0.000245,2]
[391088799,1760317839966,-418.80804016,0.000245,2]
[391088800,1760317839977,-200.0,0.000245,2]
[391088801,1760317839986,-150.0,0.000245,2]
[391088802,1760317839995,-160.0,0.000245,2]
[391088803,1760317840009,-172.5,0.000251,2]
[391088804,1760317840018,-195.0,0.000257,2]
[391088805,1760317840028,-217.5,0.000263,2]
[391088806,1760317840039,-691.083902,0.00026676,2]
[391088807,1760317840050,-1200.0,0.00026847,2]
[391088808,1760317840060,-300.0,0.00026894,2]
[391088809,1760317840070,-300.0,0.00026895,2]
[391088810,1760317840079,-300.0,0.00026895,2]
[391088811,1760317840089,-300.0,0.00026895,2]
[391088812,1760317840099,-1200.0,0.00026898,2]
[391088813,1760317840108,-1121.35678841,0.00026899,2]
[391088814,1760317840119,-240.0,0.000269,2]
[391088815,1760317840128,-414.0,0.00027,7]
[391088816,1760317840137,-198.383713,0.00027072,2]
[391088817,1760317840146,-150.0,0.000275,2]
[391088818,1760317840157,-500.0,0.00027527,7]
[391088819,1760317840165,-414.0,0.00027671,14]
[391088820,1760317840175,-223.144926,0.00027692,2]
[391088821,1760317840184,-981.0,0.00027841,2]
[391088822,1760317840193,-2160.0,0.00027841,2]
[391088823,1760317840202,-630.0,0.00027841,2]
[391088824,1760317840211,-411.0,0.00027841,2]
[391088825,1760317840223,-415.782,0.00027841,2]
[391088826,1760317840234,-153.0,0.00028293,2]
[391088827,1760317840245,-153.0,0.00028293,2]
[391088828,1760317840256,-153.0,0.00028293,2]
[391088829,1760317840270,-153.0,0.00028294,2]
[391088830,1760317840281,-153.0,0.00028294,2]
[391088831,1760317840291,-153.0,0.00028297,2]
[391088832,1760317840303,-153.0,0.00028297,2]
[391088833,1760317840314,-402.2877588,0.00028326,2]
[391088834,1760317840323,-500.0,0.00028349,7]
[391088835,1760317840333,-414.0,0.00028767,14]
[391088836,1760317840342,-300.0,0.00028914,30]
[391088837,1760317840352,-300.0,0.00028914,30]
[391088838,1760317840362,-300.0,0.00028914,30]
[391088839,1760317840372,-300.0,0.00028914,30]
[391088840,1760317840382,-300.0,0.00028914,30]
[391088841,1760317840393,-300.0,0.00028914,30]
[391088842,1760317840409,-300.0,0.00028914,30]
[391088843,1760317840418,-300.0,0.00028914,30]
[391088844,1760317840428,-300.0,0.00028914,30]
[391088845,1760317840438,-300.0,0.00028914,30]
[391088846,1760317840450,-300.0,0.00028914,30]
[391088847,1760317840460,-300.0,0.00028914,30]
[391088848,1760317840470,-300.0,0.00028914,30]
[391088849,1760317840481,-300.0,0.00028914,30]
[391088850,1760317840490,-300.0,0.00028914,30]
[391088851,1760317840500,-173.758,0.00028914,21]
[391088852,1760317840511,-420.0,0.0002908,2]
[391088853,1760317840521,-500.0,0.00029171,7]
[391088854,1760317840531,-155.995817,0.000294,7]
[391088855,1760317840541,-818.58520023,0.00029452,2]
[391088856,1760317840551,-155.995817,0.00029847,20]
[391088857,1760317840560,-500.0,0.00029993,7]
[391088858,1760317840570,-5279.8180374,0.0003,7]
[391088864,1760317846028,-5762.0,0.0003,7]
[391088866,1760317848712,2763.53,0.00027397,120]
[391088870,1760318755135,1007.1,0.00027397,120]
[391088996,1760319032197,-175.61197847,0.00021285,2]
[391088998,1760319032206,-991.51849647,0.000215,2]
[391089000,1760319032218,-824.44,0.000215,2]
[391089055,1760319040150,-2206.24659823,0.000215,2]
[391089056,1760319040162,-5034.57638524,0.00021915,2]
[391089057,1760319040173,-2088.78532203,0.00023926,2]
[391089058,1760319040184,-573.407277,0.00024142,2]
[391089059,1760319040201,-2326.7037968,0.00024142,2]
[391089060,1760319040211,-150.0,0.00025205,2]
[391089061,1760319040221,-172.5,0.00025805,2]
[391089062,1760319040231,-300.0,0.00026361,2]
[391089063,1760319040244,-391.6694734,0.00026362,2]
[391089064,1760319040255,-391.6694734,0.00026362,2]
[391089065,1760319040267,-391.6694734,0.00026362,2]
[391089066,1760319040279,-265.95551137,0.00026405,2]
[391089067,1760319040290,-195.0,0.00026405,2]
[391089068,1760319040304,-391.6694734,0.00026521,4]
[391089069,1760319040316,-391.6694734,0.00026521,4]
[391089070,1760319040326,-391.6694734,0.0002668,6]
[391089071,1760319040337,-391.6694734,0.0002668,6]
[391089072,1760319040348,-391.6694734,0.0002668,6]
[391089073,1760319040359,-391.6694734,0.00026838,8]
[391089074,1760319040370,-391.6694734,0.00026838,8]
[391089075,1760319040381,-391.6694734,0.00026838,8]
[391089076,1760319040392,-391.6694734,0.00026997,10]
[391089077,1760319040403,-391.6694734,0.00026997,10]
[391089078,1760319040414,-391.6694734,0.00026997,10]
[391089079,1760319040425,-300.0,0.00027212,30]
[391089080,1760319040436,-300.0,0.00027212,30]
[391089081,1760319040447,-300.0,0.00027212,30]
[391089082,1760319040461,-300.0,0.00027212,30]
[391089083,1760319040472,-296.19507423,0.00027212,30]
[391089175,1760319045917,542.7,0.0002739,120]
[391089206,1760319807997,607.275516,0.00013699,2]
[391089207,1760319808202,607.275516,0.00020187,2]
[391089227,1760320204125,773.0,0.0002,2]
[391089374,1760320240236,-259.0,0.00024932,7]
[391089376,1760320240245,-259.0,0.00025,7]
[391089378,1760320240255,-62.56362747,0.0002589,7]
[391089382,1760320240290,-196.43637253,0.0002589,7]
[391089384,1760320240299,-277.2277564,0.00026317,30]
[391089386,1760320240311,-983.0893249,0.00026462,2]
[391089388,1760320240321,-607.275516,0.00026676,2]
[391089390,1760320240331,-300.0,0.00026799,2]
[391089392,1760320240340,-1000.0,0.000268,2]
[391089394,1760320240350,-1000.0,0.000268,3]
[391089395,1760320240359,-1000.0,0.000268,4]
[391089396,1760320240368,-1000.0,0.000268,5]
[391089397,1760320240377,-1000.0,0.000268,6]
[391089398,1760320240386,-1000.0,0.000268,7]
[391089399,1760320240395,-225.55147277,0.000268,2]
[391089400,1760320240404,-259.0,0.00027185,7]
[391089401,1760320240413,-181.34526,0.00027213,2]
[391089402,1760320240423,-666.0,0.00027411,2]
[391089403,1760320240433,-1000.0,0.000275,10]
[391089404,1760320240442,-300.0,0.00027755,30]
[391089405,1760320240451,-300.0,0.00027755,30]
[391089406,1760320240461,-300.0,0.00027755,30]
[391089407,1760320240471,-300.0,0.00027755,30]
[391089408,1760320240480,-300.0,0.00027755,30]
[391089409,1760320240489,-300.0,0.00027755,30]
[391089410,1760320240499,-300.0,0.00027755,30]
[391089411,1760320240507,-300.0,0.00027755,30]
[391089412,1760320240516,-300.0,0.00027755,30]
[391089413,1760320240525,-300.0,0.00027755,30]
[391089414,1760320240536,-300.0,0.00027755,30]
[391089415,1760320240545,-300.0,0.00027755,30]
[391089416,1760320240554,-300.0,0.00027755,30]
[391089417,1760320240563,-300.0,0.00027755,30]
[391089418,1760320240572,-300.0,0.00027755,30]
[391089419,1760320240581,-6293.75474447,0.00028064,4]
[391089420,1760320240590,-1000.0,0.00028064,30]
[391089421,1760320240599,-2088.78532203,0.00028093,2]
[391089422,1760320240608,-153.0,0.00028172,2]
[391089423,1760320240617,-153.0,0.00028172,2]
[391089424,1760320240626,-153.0,0.00028172,2]
[391089426,1760320240635,-160.0,0.00028296,2]
[391089427,1760320240644,-985.313,0.00028556,2]
[391089429,1760320240653,-2160.0,0.00028556,2]
[391089431,1760320240662,-597.2212309,0.00028556,2]
[391089433,1760320240673,-33.7787691,0.00028556,2]
[391089435,1760320240682,-411.0,0.00028556,2]
[391089437,1760320240691,-416.952,0.00028556,2]
[391089439,1760320240700,-490.69420658,0.00028568,2]
[391089953,1760320246392,-291.33478542,0.00027473,7]
[391091143,1760320779233,500.0,0.00027397,120]
[391091144,1760320797110,3807.82403503,0.00020971,2]
[391091145,1760320797131,1192.17596497,0.00020971,2]
[391091146,1760320845790,502.0,0.00027397,120]
[391091177,1760321432417,-206.33,0.00022223,2]
[391091179,1760321432428,-525.05728457,0.00023364,2]
[391091181,1760321432438,-150.0,0.00023364,2]
[391091182,1760321432448,-153.34000654,0.000236,2]
[391091184,1760321432458,-503.12463179,0.000237,2]
[391091185,1760321432468,-172.5,0.00023964,2]
[391091186,1760321432477,-412.66,0.00024243,2]
[391091187,1760321432486,-195.0,0.00024564,2]
[391091188,1760321432496,-402.2877588,0.000247,2]
[391091189,1760321432505,-172.0,0.00024932,7]
[391091190,1760321432516,-1200.0,0.00024998,2]
[391091191,1760321432525,-300.0,0.00024999,2]
[391091192,1760321432535,-670.87267234,0.00024999,2]
[391091193,1760321432548,-529.12732766,0.00024999,2]
[391091194,1760321432557,-5000.0,0.00025,7]
[391091195,1760321432566,-172.0,0.00025,7]
[391091196,1760321432575,-217.5,0.00025164,2]
[391091197,1760321432584,-300.0,0.00025499,20]
[391091198,1760321432595,-300.0,0.00025499,20]
[391091199,1760321432604,-300.0,0.00025499,20]
[391091200,1760321432613,-300.0,0.00025499,20]
[391091201,1760321432624,-300.0,0.00025499,20]
[391091202,1760321432633,-300.0,0.00025499,20]
[391091203,1760321432642,-300.0,0.00025499,20]
[391091204,1760321432651,-300.0,0.00025499,20]
[391091205,1760321432661,-300.0,0.00025499,20]
[391091206,1760321432670,-300.0,0.00025499,20]
[391091207,1760321432680,-300.0,0.00025499,20]
[391091208,1760321432689,-300.0,0.00025499,20]
[391091209,1760321432698,-300.0,0.00025499,20]
[391091210,1760321432708,-300.0,0.00025499,20]
[391091211,1760321432717,-300.0,0.00025499,20]
[391091212,1760321432726,-207.545435,0.00025499,7]
[391091213,1760321432735,-172.0,0.0002589,7]
[391091214,1760321432744,-600.0,0.00026008,20]
[391091215,1760321432753,-618.99,0.00026264,2]
[391091216,1760321432762,-201.195735,0.00026616,2]
[391091217,1760321432771,-420.0,0.00027082,2]
[391091218,1760321432780,-176.0,0.00027185,7]
[391091219,1760321432789,-151.0,0.00027397,7]
[391091220,1760321432798,-154.017244,0.00027397,7]
[391091221,1760321432808,-500.0,0.00027397,30]
[391091222,1760321432817,-500.0,0.00027397,30]
[391091223,1760321432826,-500.0,0.00027397,30]
[391091224,1760321432836,-500.0,0.00027397,30]
[391091225,1760321432845,-500.0,0.00027397,30]
[391091226,1760321432854,-500.0,0.00027397,30]
[391091227,1760321432863,-500.0,0.00027397,30]
[391091228,1760321432872,-500.0,0.00027397,30]
[391091229,1760321432882,-500.0,0.00027397,30]
[391091230,1760321432891,-500.0,0.00027397,30]
[391091231,1760321432900,-500.0,0.00027397,30]
[391091232,1760321432910,-500.0,0.00027397,30]
[391091233,1760321432919,-500.0,0.00027397,30]
[391091234,1760321432929,-500.0,0.00027397,30]
[391091235,1760321432938,-500.0,0.00027397,30]
[391091236,1760321432947,-505.614612,0.00027397,30]
[391091237,1760321432957,-300.0,0.000274,2]
[391091238,1760321432966,-208.66521458,0.00027473,7]
[391091239,1760321432975,-2846.6524002,0.00027624,2]
[391091240,1760321432985,-175.611,0.00027624,17]
[391091241,1760321432995,-151.41522302,0.00027624,2]
[391091242,1760321433004,-4468.65546523,0.00027973,2]
[391091243,1760321433042,-1098.9883552,0.00027973,2]
[391091245,1760321438630,-4467.35617957,0.00027973,2]
[391091246,1760321438639,-153.34000654,0.00027998,2]
[391091247,1760321438649,-2088.78532203,0.00028026,2]
[391091248,1760321438658,-153.0,0.00028098,2]
[391091249,1760321438667,-153.0,0.00028098,2]
[391091250,1760321438675,-153.0,0.00028098,2]
[391091251,1760321438685,-153.0,0.00028101,2]
[391091252,1760321438694,-153.0,0.00028102,2]
[391091253,1760321438703,-1000.0,0.000285,20]
[391091254,1760321438712,-150.131,0.00028556,2]
[391091255,1760321438721,-383.37626842,0.00028568,2]
[391091257,1760321438731,-710.64869138,0.00028568,2]
[391091259,1760321438740,-720.0,0.00028609,30]
[391091261,1760321438749,-195.42801175,0.00028702,2]
[391091263,1760321438758,-1294.20513131,0.0002876,2]
[391091265,1760321438767,-981.0,0.00028773,2]
[391091267,1760321438776,-2160.0,0.00028773,2]
[391091269,1760321438785,-631.0,0.00028773,2]
[391091270,1760321438794,-411.0,0.00028773,2]
[391091271,1760321438803,-416.952,0.00028773,2]
[391091272,1760321438813,-398.9006125,0.00028871,30]
[391091273,1760321438822,-500.0,0.00029117,7]
[391091274,1760321438831,-587.0,0.00029339,2]
[391091275,1760321438840,-164.241656,0.000294,7]
[391091276,1760321438849,-785.41759548,0.0002945,2]
[391091277,1760321438859,-549.0619271,0.0002945,2]
[391091278,1760321438869,-699.95,0.0002954,10]
[391091279,1760321438878,-583.29,0.0002954,10]
[391091280,1760321438887,-486.07,0.0002954,10]
[391091281,1760321438896,-405.06,0.0002954,10]
[391091282,1760321438905,-999.0,0.00029549,2]
[391091283,1760321438914,-727.65738765,0.00029549,2]
[391091284,1760321438924,-432.74855203,0.00029549,2]
[391091285,1760321439059,-500.0,0.00029549,2]
[391091286,1760321439069,-378.46313588,0.00029549,2]
[391091287,1760321439078,-457.0711999,0.00029549,2]
[391091288,1760321439088,-213.23052294,0.00029549,2]
[391091289,1760321439097,-340.94528119,0.00029549,2]
[391091290,1760321439107,-116797.51150402,0.0002955,2]
[391091291,1760321439122,-535.83433389,0.0002955,2]
[391091362,1760321446604,-190.57,0.00022222,2]
[391091364,1760321446613,-381.15,0.00024243,2]
[391091366,1760321446623,-163.174092,0.00025499,7]
[391091368,1760321446633,-571.72,0.00026263,2]
[391091370,1760321446642,-762.3,0.00028283,2]
[391091372,1760321446652,-337.55,0.0002954,10]
[391091374,1760321446661,-19851.535908,0.0002955,2]
[391091526,1760321451304,4960.46001163,0.00027397,120]
[391091531,1760321851520,372.0,0.00027397,120]
[391091533,1760322061698,178.10274,0.00025013,120]
[391091534,1760322124211,3000.0,0.00027397,120]
[391091535,1760322131211,183.44,0.00019879,2]
[391091536,1760322206557,181.11,0.00019793,2]
[391091537,1760322287321,178.81,0.00019797,2]
[391091544,1760322482052,2001.59602922,0.000209,2]
[391091547,1760322517364,721.65974817,0.00019,2]
[391091552,1760322593332,5541.21825764,0.0002,2]
[391091553,1760322593354,683.26658432,0.0002,2]
[391091554,1760322603982,176.53,0.00019656,2]
[391091622,1760322632614,-353.06,0.00021443,2]
[391091624,1760322632624,-150.0,0.00022214,2]
[391091626,1760322632633,-172.5,0.00022814,2]
[391091628,1760322632642,-53.5009471,0.0002323,2]
[391091629,1760322632653,-476.0890529,0.0002323,2]
[391091630,1760322632663,-195.0,0.00023414,2]
[391091631,1760322632672,-164.76436758,0.0002395,2]
[391091632,1760322632681,-666.0,0.00024094,2]
[391091633,1760322632690,-172.0,0.00025,7]
[391091634,1760322632699,-300.0,0.00025012,2]
[391091635,1760322632708,-656.0,0.00025012,2]
[391091636,1760322632718,-20631.50228245,0.00025013,2]
[391091637,1760322632728,-178.10274,0.00025013,2]
[391091638,1760322632737,-178.10274,0.00025013,31]
[391091639,1760322632750,-178.10274,0.00025013,61]
[391091640,1760322632759,-178.10274,0.00025013,90]
[391091641,1760322632769,-706.12,0.00025017,2]
[391091642,1760322632778,-172.0,0.0002589,7]
[391091643,1760322632788,-3889.90235695,0.00026,60]
[391091644,1760322632797,-336.1843824,0.00026245,2]
[391091645,1760322632806,-1000.0,0.00026458,30]
[391091646,1760322632816,-175.61289279,0.00026497,13]
[391091649,1760322632825,-882.65,0.00026804,2]
[391091651,1760322632837,-420.0,0.00027096,2]
[391091654,1760322632848,-198.03850348,0.00027397,2]
[391091657,1760322632857,-295.34829229,0.000274,2]
[391091659,1760322632866,-500.0,0.0002745,5]
[391091661,1760322632875,-500.0,0.00027469,7]
[391091662,1760322632884,-1000.0,0.00027998,5]
[391091664,1760322632893,-153.0,0.00028071,2]
[391091666,1760322632902,-981.0,0.00028262,2]
[391091667,1760322632914,-419.12436929,0.00028311,2]
[391091678,1760322638591,-6503.02694449,0.00028311,2]
[391091719,1760322640635,-11681.73238622,0.00028311,2]
[391091722,1760322640645,-250.0,0.00028311,2]
[391091725,1760322640655,-250.0,0.00028311,2]
[391091728,1760322640666,-250.0,0.00028311,2]
[391091731,1760322640675,-250.0,0.00028311,2]
[391091734,1760322640684,-250.0,0.00028311,2]
[391091737,1760322640694,-258.61886726,0.00028311,2]
[391091740,1760322640703,-1500.0,0.00028546,5]
[391091743,1760322640722,-168.0,0.00028558,2]
[391091746,1760322640739,-168.0,0.00028579,2]
[391091749,1760322640749,-1059.18,0.0002859,2]
[391091752,1760322640759,-168.0,0.00028625,2]
[391091755,1760322640769,-603.22830907,0.00028663,2]
[391091759,1760322640779,-168.0,0.00028767,2]
[391091762,1760322640790,-743.80864589,0.00028851,2]
[391091765,1760322640800,-1072.15725651,0.00029041,120]
[391091768,1760322640810,-2000.0,0.00029094,5]
[391091771,1760322640820,-500.0,0.00029113,7]
[391091774,1760322640833,-743.80864589,0.00029174,2]
[391091777,1760322640844,-737.3169936,0.00029339,2]
[391091780,1760322640854,-5009.95684578,0.0002934,2]
[391091785,1760322640866,-21833.7980764,0.0002934,2]
[391091788,1760322640878,-151.0,0.0002934,30]
[391091790,1760322640888,-753.1300943,0.00029349,2]
[391091792,1760322640898,-151.0,0.0002935,15]
[391091795,1760322640908,-587.0,0.00029354,2]
[391091799,1760322640919,-164.241656,0.000294,7]
[391091801,1760322640928,-158.1,0.0002943,3]
[391091804,1760322640938,-474.3,0.0002943,3]
[391091808,1760322640947,-813.95,0.0002943,10]
[391091811,1760322640957,-238.66169684,0.00029439,2]
[391091813,1760322640968,-167.06318778,0.00029439,2]
[391091816,1760322640977,-168.0,0.0002944,2]
[391091819,1760322640986,-235.725011,0.0002944,15]
[391091822,1760322640996,-151.0,0.0002944,30]
[391091825,1760322641005,-432445.632095,0.0002944,2]
[391091828,1760322641014,-151.0,0.00029449,30]
[391091832,1760322641025,-259.770925,0.00029449,30]
[391091835,1760322641035,-151.0,0.0002945,30]
[391091838,1760322641044,-151.0,0.0002945,7]
[391091841,1760322641054,-151.0,0.0002945,7]
[391091844,1760322641063,-151.0,0.0002945,30]
[391091847,1760322641077,-151.0,0.0002945,7]
[391091850,1760322641088,-151.0,0.0002945,7]
[391091853,1760322641098,-151.0,0.0002945,7]
[391091856,1760322641107,-151.0,0.0002945,7]
[391091859,1760322641116,-151.0,0.0002945,7]
[391091862,1760322641127,-151.0,0.0002945,7]
[391091865,1760322641136,-151.0,0.0002945,7]
[391091867,1760322641146,-279.940311,0.0002945,7]
[391091870,1760322641156,-87918.87899646,0.0002945,2]
[391092153,1760322851334,516.184188,0.00013699,2]
[391092154,1760322851543,516.184188,0.00020187,2]
[391092157,1760323240257,452.25,0.00027397,120]
[391092158,1760323435876,1415.88,0.00021,2]
[391092159,1760323760552,300.0,0.00021,2]
[391092334,1760323840006,-199.13066867,0.00026362,2]
[391092335,1760323840015,-516.184188,0.00026676,2]
[391092336,1760323840025,-199.13066867,0.00026682,6]
[391092337,1760323840034,-199.13066867,0.00026682,6]
[391092338,1760323840043,-26.70965249,0.000269,20]
[391092347,1760323842998,-129.65214102,0.000269,20]
[391092348,1760323843008,-293.69258811,0.00027,2]
[391092353,1760323845819,-776.30741189,0.00027,2]
[391092354,1760323845830,-199.13066867,0.00027002,10]
[391092355,1760323845840,-101.78042159,0.00027321,14]
[391092356,1760323845979,-97.35024708,0.00027321,14]
[391092358,1760323845989,-197.59814519,0.00027397,2]
[391092359,1760323845998,-150.0,0.00027434,2]
[391092360,1760323846007,-500.0,0.00027449,7]
[391092362,1760323846018,-199.13066867,0.00027641,18]
[391092364,1760323846028,-199.13066867,0.00027641,18]
[391092366,1760323846038,-158.0,0.000286,30]
[391092368,1760323846049,-158.0,0.000286,30]
[391092370,1760323846058,-158.0,0.000286,30]
[391092372,1760323846067,-452.4212318,0.00028663,2]
[391092374,1760323846078,-160.0,0.00028825,3]
[391092376,1760323846087,-500.0,0.00029093,7]
[391092377,1760323846098,-300.0,0.00029147,2]
[391092378,1760323846114,-166.0235365,0.00029148,30]
[391092379,1760323846123,-650.540651,0.00029148,30]
[391092380,1760323846135,-602.50407544,0.0002923,2]
[391092381,1760323846146,-2560.69077565,0.0002924,2]
[391092382,1760324097915,3875.736232,0.0002,10]